[Event "1000GM Memorial Day NY IM-B 2023"]
[Site "New York"]
[Date "2023.05.28"]
[Round "6.4"]
[White "Chen, Justin"]
[Black "Nakada, Akira"]
[Result "1-0"]
[ECO "A17"]
[WhiteElo "2333"]
[BlackElo "2321"]
[Annotator "TA"]
[PlyCount "91"]
[EventDate "2023.05.23"]
[EventType "schev"]
[EventCountry "USA"]
[SourceTitle "playchess.com"]
[Source "ChessBase"]
[SourceQuality "1"]
[TimeControl "5400+30"]

{[%evp 15,91,16,33,29,29,18,37,37,48,43,43,45,57,52,104,109,97,66,64,68,64,62,58,60,55,23,14,0,0,0,0,0,0,0,0,0,0,0,0,0,0,0,6,0,0,0,0,0,0,0,0,0,80,77,69,69,72,76,537,522,558,509,535,528,496,612,441,615,612,553,582,532,802,691,1706,1361,2092,1762]} 1. Nf3 {[%emt 0:00:04]} Nf6 {[%emt 0:10:43]} 2. c4 {[%emt 0:00:09]} e6 {[%emt 0:00:06]} 3. Nc3 {[%emt 0:00:13]} Bb4 {[%emt 0:00:05]} 4. Qc2 {[%emt 0:00:47]} O-O {[%emt 0:02:21]} 5. a3 {[%emt 0:00:44]} Bxc3 {[%emt 0:00:08]} 6. Qxc3 {[%emt 0:00:15]} d6 {[%emt 0:00:05]} 7. g3 {[%emt 0:01:38]} e5 {[%emt 0:01:21]} 8. Bg2 {[%emt 0:00:35]} Nc6 {[%emt 0:09:07]} 9. b4 {[%emt 0:05:56][%cal Bb2b4,Bb4b5][%mdl 32] A17: English Opening: 1...Nf6 with ...Bb4.} Re8 {[%emt 0:04:56] [#]} 10. b5 $146 {[%emt 0:05:44]} ({Predecessor:} 10. Bb2 Bg4 11. h3 Bh5 12. O-O d5 13. d3 Bxf3 14. exf3 Qd6 15. Rfe1 dxc4 16. dxc4 {½-½ Nikolaidis,I (2529)-Georgiadis,I (2438) GRE-ch Katakolo 2009 (9)}) 10... Nb8 {[%emt 0:01:06][%cal Bc6b8,Bb8d7,Bd7c5][%mdl 32]} 11. O-O {[%emt 0:01:37] White is slightly better.} Nbd7 {[%emt 0:02:07]} 12. d3 {[%emt 0:05:10]} Nc5 {[%emt 0:01:11]} 13. a4 {[%emt 0:02:41]} a5 {[%emt 0:01:30]} 14. Be3 {[%emt 0:08:19]} e4 {[%emt 0:14:13]} (14... Ne6 $14) 15. Nd2 $16 {[%emt 0:02:47] White is more active.} Bf5 {[%emt 0:00:22]} 16. Bxc5 {[%emt 0:10:48]} dxc5 {[%emt 0:00:05]} 17. dxe4 {[%emt 0:00:05]} Nxe4 {[%emt 0:06:35]} 18. Nxe4 {[%emt 0:00:04]} Bxe4 {[%emt 0:00:05]} 19. Rad1 {[%emt 0:04:21]} Qe7 {[%emt 0:07:45]} 20. Bxe4 {[%emt 0:08:12]} (20. Bh3 $5 {[%cal Rd1d7]}) 20... Qxe4 {[%emt 0:00:03]} 21. Rd5 {[%emt 0:03:19]} b6 {[%emt 0:04:33]} 22. e3 {[%emt 0:00:28]} Rad8 {[%emt 0:01:27]} 23. Rfd1 {[%emt 0:00:12]} Rxd5 {[%emt 0:00:10]} 24. Rxd5 $11 {[%emt 0:00:05][%mdl 4096] Endgame KQR-KQR} h6 {[%emt 0:02:47]} 25. Qd3 {[%emt 0:01:01]} Kf8 {[%emt 0:05:53]} 26. Rd8 {[%emt 0:02:31]} Qxd3 {[%emt 0:00:41]} 27. Rxd3 {[%emt 0:00:02][%cal Bd8d3,Bd3c3,Bc3c1,Bc1d1,Bd1d7,Bd7c7,Bc7c6][%mdl 32] KR-KR} Re4 {[%emt 0:00:30]} 28. Rc3 {[%emt 0:00:01]} f5 {[%emt 0:01:56]} 29. Kf1 {[%emt 0:00:09]} Ke7 {[%emt 0:00:22]} 30. Ke2 {[%emt 0:00:11]} g5 {[%emt 0:00:23]} 31. Rc1 {[%emt 0:03:31]} Kf6 {[%emt 0:03:21]} 32. f3 {[%emt 0:02:44]} Re6 {[%emt 0:00:26]} 33. Rd1 {[%emt 0:01:02]} Rd6 {[%emt 0:01:11] [#]} (33... f4 $11 {remains equal.} 34. e4 Ke7) 34. f4 $1 $16 {[%emt 0:03:28] aiming for Rxd6+.} gxf4 {[%emt 0:18:24]} 35. gxf4 {[%emt 0:00:57] Strongly threatening Rxd6+.} Re6 {[%emt 0:00:59]} 36. Rd7 {[%emt 0:01:14]} Re4 $2 {[%emt 0:00:02][%mdl 8192] [#] This move loses the game for Black.} (36... c6 $16) 37. Kd3 $1 $18 {[%emt 0:00:30] White is clearly winning.} ({Not} 37. Rxc7 Rxc4 38. Rc6+ Kg7 $16) 37... Kg6 {[%emt 0:00:02]} 38. Rxc7 {[%emt 0:00:18]} Kh5 {[%emt 0:00:05]} 39. Rc6 {[%emt 0:00:26]} Kg4 {[%emt 0:00:11]} 40. Rxb6 {[%emt 0:04:14] Black must now prevent Rc6.} ({Stronger than} 40. Rxh6 Rxe3+ 41. Kxe3 $11) 40... Kf3 {[%emt 0:00:01]} 41. Rc6 {[%emt 0:01:29]} ({Less strong is} 41. Rxh6 Rxe3+ 42. Kd2 Re2+ 43. Kd1 Re4 $18) 41... Rxe3+ {[%emt 0:00:04]} 42. Kd2 {[%emt 0:00:02]} Re2+ {[%emt 0:00:01]} 43. Kd1 {[%emt 0:00:17]} Ra2 {[%emt 0:00:35]} 44. Rxc5 {[%emt 0:00:32] b6 is the strong threat.} Ke3 {[%emt 0:01:21]} 45. b6 {[%emt 0:01:47] Threatens to win with b7.} Kd3 {[%emt 0:00:03]} 46. Rd5+ {[%emt 0:22:51] Weighted Error Value: White=0.04 (flawless) /Black=0.27 (precise)} (46. Rxa5 $2 Ra1#) 1-0

[Event "1000GM Memorial Day NY IM-B 2023"]
[Site "New York"]
[Date "2023.05.28"]
[Round "6.5"]
[White "Luo, Terry"]
[Black "Espinosa, Pedro"]
[Result "1/2-1/2"]
[ECO "D12"]
[WhiteElo "2321"]
[BlackElo "2229"]
[Annotator "TA"]
[PlyCount "106"]
[EventDate "2023.05.23"]
[EventType "schev"]
[EventCountry "USA"]
[SourceTitle "playchess.com"]
[Source "ChessBase"]
[SourceQuality "1"]
[TimeControl "5400+30"]

{[%evp 13,106,34,33,28,19,0,3,0,0,0,0,0,0,0,0,-33,-37,-37,-31,-85,-85,-85,-85,-99,-99,-103,-105,-118,-75,-75,0,-102,-89,-106,-78,-91,-68,-52,-64,-67,-69,-72,-12,-14,0,0,0,0,44,44,43,43,43,43,48,43,43,43,43,43,43,43,43,48,48,33,33,33,33,33,33,10,33,10,33,10,33,10,33,0,33,10,33,33,33,33,33,8,8,8,8,8,8,8,8]} 1. d4 {[%emt 0:00:02]} d5 {[%emt 0:00:09]} 2. c4 {[%emt 0:00:02]} c6 {[%emt 0:00:08]} 3. Nf3 {[%emt 0:00:03]} Nf6 {[%emt 0:00:08]} 4. e3 {[%emt 0:00:02]} Bf5 {[%emt 0:00:23]} 5. Nc3 {[%emt 0:00:03]} e6 {[%emt 0:00:22]} 6. Nh4 {[%emt 0:00:11]} Bg6 {[%emt 0:00:11]} 7. Nxg6 {[%emt 0:04:24]} hxg6 {[%emt 0:00:07]} 8. g3 {[%emt 0:00:10] 8.Rb1 is setting a new trend. D12: Slav Defence: 3 Nf3 Nf6 4 e3 Bf5.} Nbd7 {[%emt 0:01:57]} 9. Bg2 {[%emt 0:01:55]} dxc4 {[%emt 0:03:38]} 10. O-O {[%emt 0:02:09]} Qa5 {[%emt 0:03:35] [#]} 11. Bd2 $146 {[%emt 0:05:15]} ({Predecessor:} 11. e4 e5 12. h4 exd4 13. Qxd4 Qc5 14. Be3 Qxd4 15. Bxd4 Bc5 16. Rad1 O-O-O 17. f4 Bxd4+ 18. Rxd4 {½-½ Georgiev,V (2567)-Delchev,A (2591) BUL-chT 57th 2007 (5.1)}) 11... Qh5 {[%emt 0:03:47]} 12. Qxh5 {[%emt 0:00:17]} gxh5 {[%emt 0:00:31]} 13. Rfc1 {[%emt 0:09:17]} Nb6 {[%emt 0:02:41]} 14. b3 {[%emt 0:00:36]} cxb3 {[%emt 0:07:51]} 15. axb3 {[%emt 0:00:21][%cal Oc3b5]} Bb4 {[%emt 0:05:35]} 16. Ne4 {[%emt 0:04:29]} (16. e4 $15) 16... Bxd2 $17 {[%emt 0:01:45]} 17. Nxd2 {[%emt 0:00:01]} Ke7 {[%emt 0:03:48]} 18. Ra5 {[%emt 0:11:14]} h4 {[%emt 0:02:02]} 19. Nf3 {[%emt 0:08:17]} hxg3 {[%emt 0:02:31]} 20. hxg3 {[%emt 0:00:01]} Nbd7 {[%emt 0:02:05]} 21. Nd2 {[%emt 0:02:06]} Nb6 {[%emt 0:03:42]} 22. Nf3 $1 {[%emt 0:00:10]} a6 {[%emt 0:01:46]} 23. Ne5 {[%emt 0:01:42]} Nfd7 {[%emt 0:02:22]} 24. Nd3 {[%emt 0:00:36]} Nd5 {[%emt 0:03:22]} 25. e4 {[%emt 0:00:53]} N5b6 {[%emt 0:03:35]} 26. d5 {[%emt 0:26:10]} exd5 {[%emt 0:04:33]} 27. exd5 {[%emt 0:00:06]} cxd5 {[%emt 0:00:09]} (27... Nxd5 $17 {Strongly threatening ...Nc7.} 28. Bxd5 b6 29. Bxc6 (29. Re1+ Kd6 $15) 29... bxa5 30. Bxa8 Rxa8) 28. Nf4 $11 {[%emt 0:03:12]} Rac8 {[%emt 0:13:01]} 29. Nxd5+ {[%emt 0:02:02]} Nxd5 {[%emt 0:00:50]} 30. Re1+ {[%emt 0:00:37]} Kf6 {[%emt 0:01:26] [#] ...Nb4 is the strong threat.} 31. Rxd5 {[%emt 0:01:00]} Nc5 {[%emt 0:03:26]} 32. Rd6+ {[%emt 0:00:49]} Ne6 $1 {[%emt 0:01:46]} 33. Bxb7 {[%emt 0:00:30]} Rc3 {[%emt 0:00:48]} 34. Bxa6 {[%emt 0:02:31]} Rxb3 {[%emt 0:00:53]} 35. Bc4 {[%emt 0:00:07][%csl LRb3,LRe6]} Rb7 {[%emt 0:00:50]} 36. Bxe6 {[%emt 0:00:10]} fxe6 {[%emt 0:00:07]} 37. Rexe6+ $14 {[%emt 0:00:42][%mdl 4096] Endgame KRR-KRR} ({But not} 37. Rdxe6+ Kf7 $16) 37... Kf7 {[%emt 0:00:37]} 38. Re4 {[%emt 0:00:08]} Re8 {[%emt 0:01:25]} 39. Rf4+ {[%emt 0:00:31]} Kg8 $1 {[%emt 0:00:18]} 40. Kg2 {[%emt 0:00:04]} Rf7 {[%emt 0:00:22]} 41. Rxf7 {[%emt 0:00:11]} Kxf7 {[%emt 0:00:06] KR-KR} 42. g4 {[%emt 0:00:04]} Re7 {[%emt 0:00:36]} 43. Kg3 {[%emt 0:00:04]} g6 {[%emt 0:00:15]} 44. Ra6 {[%emt 0:00:17]} Kg7 {[%emt 0:00:25]} 45. Kh4 {[%emt 0:00:07]} Rf7 {[%emt 0:00:27]} 46. Kg3 {[%emt 0:00:46]} (46. Ra2 $5 {[%cal Rh4g5]}) 46... Rb7 {[%emt 0:00:27]} 47. f3 {[%emt 0:00:15][%cal Bf2f3,Bf3f4][%mdl 32]} Rc7 {[%emt 0:00:30]} 48. f4 {[%emt 0:00:10]} Rb7 {[%emt 0:00:29]} 49. Kh4 {[%emt 0:00:06]} Rc7 {[%emt 0:00:25]} 50. Kg5 {[%emt 0:00:14]} Rc5+ {[%emt 0:00:07] The position is equal.} 51. f5 {[%emt 0:00:14]} gxf5 {[%emt 0:00:21]} 52. Ra7+ {[%emt 0:00:14]} Kf8 {[%emt 0:00:27]} 53. gxf5 {[%emt 0:00:24] [#] Threatening mate with Kg6.} Rc6 {[%emt 0:00:22] Weighted Error Value: White=0.08 (flawless) /Black=0.11 (very precise)} 1/2-1/2

[Event "1000GM Memorial Day NY IM-B 2023"]
[Site "New York"]
[Date "2023.05.28"]
[Round "6.6"]
[White "Bisiriyu-Salam, Oluwaseun"]
[Black "Hebbar, Eshaan"]
[Result "0-1"]
[ECO "A03"]
[WhiteElo "2011"]
[BlackElo "1969"]
[Annotator "RC"]
[PlyCount "96"]
[EventDate "2023.05.23"]
[EventType "schev"]
[EventCountry "USA"]
[SourceTitle "playchess.com"]
[Source "ChessBase"]
[SourceQuality "1"]
[TimeControl "5400+30"]

1. f4 {[%emt 0:08:23]} d5 {[%emt 0:00:08]} 2. Nf3 {[%emt 0:00:23]} c5 {[%emt 0:00:09]} 3. e3 {[%emt 0:00:10]} Nc6 {[%emt 0:00:08]} 4. Bb5 {[%emt 0:00:13]} Nf6 {[%emt 0:01:20]} 5. Bxc6+ {[%emt 0:01:26]} bxc6 {[%emt 0:00:03]} 6. b3 {[%emt 0:00:07]} g6 {[%emt 0:05:08]} 7. Bb2 {[%emt 0:00:11]} Bg7 {[%emt 0:00:01]} 8. O-O {[%emt 0:00:28]} O-O {[%emt 0:00:09]} 9. Qe1 {[%emt 0:03:18]} a5 {[%emt 0:07:43]} 10. a4 {[%emt 0:00:26]} Ba6 {[%emt 0:00:11]} 11. d3 {[%emt 0:00:50]} c4 {[%emt 0:00:54]} 12. Ne5 {[%emt 0:00:48]} cxd3 {[%emt 0:00:37]} 13. cxd3 {[%emt 0:00:13]} Qc7 {[%emt 0:00:47]} 14. Nd2 {[%emt 0:01:18]} Ng4 {[%emt 0:08:10]} 15. Ndf3 {[%emt 0:01:46]} Nxe5 {[%emt 0:00:12]} 16. Nxe5 {[%emt 0:07:52]} f6 {[%emt 0:00:15]} 17. Ng4 {[%emt 0:01:15]} Bxd3 {[%emt 0:00:10]} 18. Rf3 {[%emt 0:00:37]} Qb6 {[%emt 0:03:35]} 19. Qc3 {[%emt 0:02:42]} Be4 {[%emt 0:00:10]} 20. Rh3 {[%emt 0:00:29]} h5 {[%emt 0:00:07]} 21. Nf2 {[%emt 0:00:54]} Bf5 {[%emt 0:00:01]} 22. g4 {[%emt 0:04:54]} hxg4 {[%emt 0:01:14]} 23. Rg3 {[%emt 0:01:33]} Rfb8 {[%emt 0:00:26]} 24. e4 {[%emt 0:01:00]} Bxe4 {[%emt 0:01:59]} 25. Re1 {[%emt 0:07:28]} e6 {[%emt 0:06:27]} 26. Rxe4 {[%emt 0:00:22]} dxe4 {[%emt 0:00:31]} 27. Qc4 {[%emt 0:00:11]} Kf7 {[%emt 0:01:16]} 28. Kg2 {[%emt 0:02:30]} e3 {[%emt 0:07:24]} 29. Nd3 {[%emt 0:31:17]} Qxb3 {[%emt 0:00:34]} 30. Qxb3 {[%emt 0:20:41]} Rxb3 {[%emt 0:00:03]} 31. Rxe3 {[%emt 0:00:03]} Rab8 {[%emt 0:00:31]} 32. Bd4 {[%emt 0:00:25]} Rd8 {[%emt 0:00:27]} 33. Nc5 {[%emt 0:01:58]} Rxe3 {[%emt 0:00:28]} 34. Bxe3 {[%emt 0:00:02]} Bf8 {[%emt 0:00:28]} 35. Nb7 {[%emt 0:00:55]} Rd3 {[%emt 0:00:35]} 36. Kf2 {[%emt 0:00:19]} Bb4 {[%emt 0:00:08]} 37. Ke2 {[%emt 0:00:35]} Rd7 {[%emt 0:00:08]} 38. Nc5 {[%emt 0:00:16]} Bxc5 {[%emt 0:00:02]} 39. Bxc5 {[%emt 0:00:02]} Rd5 {[%emt 0:00:02]} 40. Bb6 {[%emt 0:00:25]} Ke7 {[%emt 0:00:12]} 41. Ke3 {[%emt 0:00:09]} Kd7 {[%emt 0:00:13]} 42. Ke4 {[%emt 0:00:07]} f5+ {[%emt 0:00:07]} 43. Ke3 {[%emt 0:00:17]} e5 {[%emt 0:00:10]} 44. fxe5 {[%emt 0:00:40]} Rxe5+ {[%emt 0:00:01]} 45. Kd3 {[%emt 0:00:19]} f4 {[%emt 0:00:14]} 46. Ba7 {[%emt 0:00:10]} g3 {[%emt 0:00:09]} 47. hxg3 {[%emt 0:00:14]} fxg3 {[%emt 0:00:03]} 48. Kd4 {[%emt 0:00:26]} Re1 {[%emt 1:00:40]} 0-1

[Event "1000GM Memorial Day NY IM-B 2023"]
[Site "New York"]
[Date "2023.05.29"]
[Round "7.1"]
[White "Barbosa, Oliver"]
[Black "Pang, Qi"]
[Result "1-0"]
[ECO "A11"]
[WhiteElo "2492"]
[BlackElo "2165"]
[Annotator "TA"]
[PlyCount "85"]
[EventDate "2023.05.23"]
[EventType "schev"]
[EventCountry "USA"]
[SourceTitle "playchess.com"]
[Source "ChessBase"]
[SourceQuality "1"]
[TimeControl "5400+30"]

{[%evp 14,85,30,18,19,16,25,13,37,27,25,18,19,20,47,44,51,28,34,16,32,0,0,0,0,0,0,-44,6,0,0,-46,14,0,8,14,11,7,10,0,0,0,0,0,0,-8,7,-22,0,-7,0,0,14,13,16,12,130,127,551,551,551,551,550,543,673,484,484,470,518,518,787,695,817,793]} 1. Nf3 {[%emt 0:00:57]} d5 {[%emt 0:00:17]} 2. c4 {[%emt 0:00:09]} c6 {[%emt 0:00:06]} 3. g3 {[%emt 0:00:18]} Nf6 {[%emt 0:00:10]} 4. Bg2 {[%emt 0:00:05]} g6 {[%emt 0:00:28]} 5. b3 {[%emt 0:00:17]} Bg7 {[%emt 0:00:10]} 6. Bb2 {[%emt 0:00:07]} O-O {[%emt 0:00:30]} 7. O-O {[%emt 0:00:08]} a5 {[%emt 0:04:06]} 8. d3 {[%emt 0:01:33]} Bg4 {[%emt 0:03:55] A11: English Opening: 1...c6.} 9. Nbd2 {[%emt 0:00:38]} Nbd7 {[%emt 0:00:31]} 10. a3 {[%emt 0:00:51]} Qb8 {[%emt 0:05:29] The position is equal.} 11. Rc1 {[%emt 0:03:56] [#]} Rc8 $146 {[%emt 0:06:16]} ({Predecessor:} 11... e6 12. h3 Bxf3 13. Nxf3 Ne8 14. d4 a4 15. b4 Nd6 16. Nd2 b5 17. cxd5 cxd5 {1-0 Maletin,P (2588)-Hansen,E (2584) Wch Blitz 8th 2014 (11)}) 12. Rc2 {[%emt 0:00:40]} Qd6 {[%emt 0:04:39]} 13. Qa1 {[%emt 0:01:31]} Bxf3 {[%emt 0:02:27]} 14. Nxf3 {[%emt 0:00:56][%cal Oe2e4]} Ne8 {[%emt 0:04:29]} 15. Rfc1 {[%emt 0:00:16]} e6 {[%emt 0:20:16]} 16. h4 {[%emt 0:04:07]} Rd8 {[%emt 0:04:17]} 17. h5 {[%emt 0:07:42]} Nc5 {[%emt 0:04:18]} 18. Bxg7 {[%emt 0:02:36][%mdl 64] [#] Remove Defender} Nxg7 {[%emt 0:00:09]} ({Resist} 18... Nxb3 19. Qb2 Nxc1 20. Bd4 $16) 19. hxg6 {[%emt 0:15:13]} ({Don't play} 19. h6 Nf5 20. Qb1 Na6 $15) 19... hxg6 {[%emt 0:00:48]} 20. Nd4 {[%emt 0:01:17]} Nd7 {[%emt 0:02:42]} (20... Nf5 $1 $15 21. Rb1 Nxd4 22. Qxd4 e5) 21. Nf3 {[%emt 0:06:43]} (21. cxd5 $11 exd5 22. a4) 21... Nc5 $15 {[%emt 0:00:46]} 22. Nd4 {[%emt 0:03:42] Black must now prevent cxd5.} Nd7 {[%emt 0:00:08]} ({Black should try} 22... Nf5 $1 $15 23. Rb1 Nxd4 24. Qxd4 e5) 23. cxd5 $11 {[%emt 0:06:11]} exd5 {[%emt 0:00:06]} 24. Qb2 {[%emt 0:00:06]} Re8 {[%emt 0:04:30]} 25. b4 {[%emt 0:01:44]} axb4 {[%emt 0:01:05]} 26. axb4 {[%emt 0:00:07]} Ra4 {[%emt 0:00:48]} 27. Rb1 $40 {[%emt 0:00:26][%mdl 128] White is up to no good.} Rea8 {[%emt 0:01:16]} 28. Nf3 {[%emt 0:01:28]} Ne6 {[%emt 0:02:59][%cal Bg7e6,Be6c7,Bc7a6,Ba6b4][%mdl 32]} 29. Bh3 {[%emt 0:00:38]} Nc7 {[%emt 0:01:37]} 30. Kg2 {[%emt 0:14:20] Bxd7 is the strong threat.} Nf6 {[%emt 0:02:04]} (30... Nf8 $5 {[%cal Rc7b5]}) 31. Nd4 {[%emt 0:04:44][%cal Bf3d4,Bd4e6,Be6c5,Bc5a4,Ba4b6,Bb6d7][%mdl 32]} Na6 {[%emt 0:02:41][%cal Ra6b4]} 32. b5 {[%emt 0:03:30]} Nb4 {[%emt 0:00:19]} 33. bxc6 {[%emt 0:00:42]} bxc6 {[%emt 0:00:12]} (33... Nxc2 $2 34. cxb7 Rb8 35. Nxc2 $18) 34. Rcc1 {[%emt 0:00:12]} c5 {[%emt 0:09:35]} (34... Kg7 $11) 35. Ne6 $1 $16 {[%emt 0:00:24][%mdl 64] [#] Discovered Attack} Qe7 {[%emt 0:05:48][%mdl 8192] Black cannot hold the game after this.} (35... Nh5 $16 {is tougher.}) 36. Nxc5 $18 {[%emt 0:00:27] White is clearly winning.} Na2 {[%emt 0:01:03]} 37. Nxa4 {[%emt 0:01:07]} Nxc1 {[%emt 0:00:04]} 38. Nb6 {[%emt 0:02:14]} Ra2 {[%emt 0:00:13]} 39. Qxc1 {[%emt 0:01:14][%cal Ob6d5] Hoping for Nxd5!} Qxe2 {[%emt 0:00:06]} 40. Qf1 {[%emt 0:00:21]} Qc2 {[%emt 0:00:14]} 41. Nd7 {[%emt 0:01:43]} Nh5 {[%emt 0:00:55]} (41... Nxd7 $142 42. Bxd7 Qd2) 42. Bg4 {[%emt 0:01:41]} Qc7 {[%emt 0:00:41]} 43. Bxh5 {[%emt 0:00:10] Weighted Error Value: White=0.12 (very precise) /Black=0.44} 1-0

[Event "1000GM Memorial Day NY IM-B 2023"]
[Site "New York"]
[Date "2023.05.29"]
[Round "7.2"]
[White "Nagy, Gabor"]
[Black "Lee, Alice"]
[Result "1/2-1/2"]
[ECO "D23"]
[WhiteElo "2468"]
[BlackElo "2391"]
[Annotator "TA"]
[PlyCount "25"]
[EventDate "2023.05.23"]
[EventType "schev"]
[EventCountry "USA"]
[SourceTitle "playchess.com"]
[Source "ChessBase"]
[SourceQuality "1"]
[TimeControl "5400+30"]

{[%evp 13,25,9,12,0,30,0,0,0,23,19,16,12,11,17]} 1. d4 {[%emt 0:02:25]} d5 {[%emt 0:00:04]} 2. Nf3 {[%emt 0:02:35]} Nf6 {[%emt 0:00:09]} 3. c4 {[%emt 0:00:40]} c6 {[%emt 0:00:13]} 4. Qc2 {[%emt 0:01:21]} dxc4 {[%emt 0:00:10]} 5. Qxc4 {[%emt 0:00:15]} Bf5 {[%emt 0:00:14]} 6. g3 {[%emt 0:01:03]} e6 {[%emt 0:00:11]} 7. Bg2 {[%emt 0:00:07]} Be7 {[%emt 0:00:24] Nowadays more popular than 7...Nbd7.} 8. O-O {[%emt 0:00:22] D23: Queen's Gambit Accepted: 3 Nf3 Nf6 sidelines.} O-O {[%emt 0:00:12]} 9. Qb3 {[%emt 0:00:43]} Qb6 {[%emt 0:00:42]} 10. Nbd2 {[%emt 0:00:15]} Nbd7 {[%emt 0:06:37]} 11. Nc4 {[%emt 0:00:14]} Qxb3 {[%emt 0:09:48]} 12. axb3 {[%emt 0:00:08]} Be4 {[%emt 0:02:53] [#]} 13. Bg5 $146 {[%emt 0:05:36] A rather calm draw.   Weighted Error Value: White=0.10 (very precise) /Black=0.03 (flawless)} ({Predecessor:} 13. Bf4 c5 14. Rfc1 Rfc8 15. Nd6 Bxd6 16. Bxd6 cxd4 17. Nxd4 Bxg2 18. Kxg2 a6 19. f3 {½-½ Dubov,D (2676)-Duda,J (2748) Hamburg FIDE GP 2019 (3.2)}) 1/2-1/2

[Event "1000GM Memorial Day NY IM-B 2023"]
[Site "New York"]
[Date "2023.05.29"]
[Round "7.3"]
[White "Bortnyk, Mykola"]
[Black "Ansh M Shah"]
[Result "1-0"]
[ECO "E05"]
[WhiteElo "2425"]
[BlackElo "2171"]
[Annotator "TA"]
[PlyCount "89"]
[EventDate "2023.05.23"]
[EventType "schev"]
[EventCountry "USA"]
[SourceTitle "playchess.com"]
[Source "ChessBase"]
[SourceQuality "1"]
[TimeControl "5400+30"]

{[%evp 21,89,27,50,8,45,16,27,24,25,0,0,0,0,0,0,-23,-19,-20,-19,-43,-41,-58,-20,-21,0,-25,-19,-19,0,0,0,0,32,25,107,110,745,37,43,26,11,25,23,0,0,0,0,0,9,10,96,96,393,393,393,391,385,345,914,909,4134,4133,29989,29984,29990,29985,29986,29987,29987,29983]} 1. d4 {[%emt 0:00:11]} Nf6 {[%emt 0:00:16]} 2. c4 {[%emt 0:00:14]} e6 {[%emt 0:00:06]} 3. g3 {[%emt 0:00:59]} d5 {[%emt 0:00:14]} 4. Bg2 {[%emt 0:00:24]} Be7 {[%emt 0:00:18]} 5. Nf3 {[%emt 0:00:12]} O-O {[%emt 0:00:06]} 6. O-O {[%emt 0:00:29]} dxc4 {[%emt 0:00:05]} 7. Qa4 {[%emt 0:00:26]} a6 {[%emt 0:00:22]} 8. Qxc4 {[%emt 0:00:08]} b5 {[%emt 0:00:32]} 9. Qc2 {[%emt 0:00:17]} Bb7 {[%emt 0:00:12]} 10. Bd2 {[%emt 0:00:06]} Nbd7 {[%emt 0:01:27]} 11. Ba5 {[%emt 0:01:00]} Rc8 {[%emt 0:01:18]} 12. a4 {[%emt 0:01:19] E05: Open Catalan: 5 Nf3 Be7.} bxa4 {[%emt 0:10:15]} 13. Nc3 {[%emt 0:02:19]} Qe8 {[%emt 0:01:55] [#]} 14. e4 $146 {[%emt 0:08:36] White has an edge.} ({Predecessor:} 14. Qxa4 c5 15. Rfd1 Bc6 16. Qa2 cxd4 17. Nxd4 Bxg2 18. Kxg2 Ne5 19. Na4 Nc6 {½-½ Sosonko,G (2530)-Byrne,R (2580) Geneve 1977 (7)}) 14... Nb6 {[%emt 0:05:20]} 15. Ne5 {[%emt 0:00:38] Prevents Nc4} Nfd7 {[%emt 0:01:29]} 16. Nxd7 {[%emt 0:01:49]} Qxd7 {[%emt 0:00:30]} 17. Rfd1 {[%emt 0:00:09][%cal Rc3a4]} Bc6 {[%emt 0:12:34]} 18. d5 {[%emt 0:00:37]} exd5 {[%emt 0:01:12]} 19. exd5 {[%emt 0:00:19]} Bb5 {[%emt 0:01:22]} 20. Ne2 {[%emt 0:15:10]} Bf6 {[%emt 0:08:28][%cal Of6b2]} 21. Bb4 {[%emt 0:00:35]} Bxe2 {[%emt 0:02:12]} 22. Qxe2 {[%emt 0:00:08]} Rfe8 {[%emt 0:00:14]} 23. Qxa6 {[%emt 0:01:02]} Bxb2 {[%emt 0:13:15]} 24. Rab1 {[%emt 0:01:12]} Ra8 {[%emt 0:01:38]} (24... Qg4 $5 {[%cal Rg4b4]} 25. f4 a3 $15) 25. Qf1 {[%emt 0:00:03]} a3 {[%emt 0:01:45]} 26. d6 $1 {[%emt 0:00:06]} Rad8 {[%emt 0:03:00][%cal Rc7d6]} 27. Qa6 {[%emt 0:01:58]} Qe6 {[%emt 0:28:55] [#]} (27... Qc8 $11 28. Qxc8 {[%mdl 64] Remove Defender} Rxc8) 28. Bc6 $1 $16 {[%emt 0:03:37] White is more active. A strong pair of Bishops.} (28. Bxa3 Bxa3 29. Qxa3 Nc4 $14) (28. dxc7 Rxd1+ 29. Rxd1 Nd5 30. Qxe6 fxe6 31. Bxa3 (31. Bxd5 $2 exd5 32. Bxa3 Bxa3 $19) 31... Bxa3 $14) 28... Rf8 {[%emt 0:01:23][%mdl 8192]} (28... Qc4 $2 29. Qxc4 Nxc4 30. dxc7 $18) (28... Qb3 $16) 29. Re1 $2 {[%emt 0:00:06]} (29. Bxa3 Bxa3 30. Qxa3 Nc4 $11) (29. dxc7 $18 Rxd1+ 30. Rxd1 Qxc6 31. Rd8 {[%mdl 64] Pin} (31. Bxa3 $2 Bxa3 32. Qxa3 Qxc7 $19) 31... Qc1+ 32. Qf1 Qxf1+ 33. Kxf1) 29... Qb3 $1 $14 {[%emt 0:01:44]} (29... Qc8 $2 30. Qxc8 Rxc8 31. d7 $18) 30. dxc7 {[%emt 0:03:16]} Qxb4 {[%emt 0:00:19]} 31. cxd8=Q {[%emt 0:00:03]} (31. cxd8=B Rxd8 32. Qa7 Rf8 $14) 31... Rxd8 {[%emt 0:00:10]} 32. Bb5 {[%emt 0:03:24]} Qc5 {[%emt 0:00:39]} 33. Re8+ {[%emt 0:03:18]} Rxe8 {[%emt 0:00:02]} 34. Bxe8 {[%emt 0:00:01] Strongly threatening Qa7.} Nd5 {[%emt 0:01:59]} 35. Rd1 $36 {[%emt 0:01:07][%mdl 2048] Hoping for Bc6. White fights for an advantage.} g6 {[%emt 0:01:04] [#]} (35... Bd4 $11) 36. Qb7 $1 $16 {[%emt 0:00:50][%csl LRd5,LRf7]} Qe7 {[%emt 0:01:12][%mdl 8192]} (36... Ne7 $16) 37. Bxf7+ $18 {[%emt 0:01:02]} ({Not} 37. Qxd5 Qxe8 38. Qd8 Kf8 $11) 37... Qxf7 {[%emt 0:00:29]} 38. Qa8+ {[%emt 0:00:01]} (38. Qxd5 $2 {perishes.} Qxd5 39. Rxd5 a2 40. Rd8+ Kf7 $19) 38... Kg7 {[%emt 0:00:11] aiming for ...Nc7.} 39. Rxd5 {[%emt 0:00:02][%mdl 4096] Endgame KQR-KQB} (39. Qxd5 $2 {too greedy.} Qxd5 40. Rxd5 a2 $19) 39... Qe6 $2 {[%emt 0:00:33]} (39... Bf6 40. h4 Kh6) 40. Qb7+ {[%emt 0:00:53]} Kh6 {[%emt 0:00:08]} 41. Rd7 {[%emt 0:00:11]} a2 {[%emt 0:01:21]} 42. Rxh7+ {[%emt 0:00:56] White mates.} Kg5 {[%emt 0:00:01]} 43. h4+ {[%emt 0:02:07]} Kg4 {[%emt 0:00:51]} 44. Kg2 {[%emt 0:00:03][%csl Gg2][%cal Rb7f3]} Kf5 {[%emt 0:00:42]} 45. Qxb2 {[%emt 0:00:26] Weighted Error Value: White=0.26 (precise) /Black=0.48} 1-0